Workbook

Sheet 直近4週間の実績
A1: 直近4週間の勤務実績表（ダブルワーク対応） | S1: 令和8年度 学童保育用
A3: 就労者 （保護者） | C3: カナ | M3: 記入日：(西暦) | S3: 年 | U3: 月 | W3: 日
C4: 氏名 | L4: 児童との続柄
A5: 児童 | C5: カナ
C6: 氏名 | L6: 第一希望 学童保育室
B7: 年 | C7: 月 | D7: 日
A8: 西暦 | E8: から4週間 | Y8: =IF(B8>0,IF(C8>0,IF(D8>0,DATE(B8,C8,D8)," ")," ")," ") ->  | Z8: =IF(Y8=" "," ",WEEKDAY(Y8,1)) -> 
B10: 週 | C10: 月 | D10: 日 | E10: 曜 | F10: 就労場所① | L10: 就労場所② | R10: 実際の就労時間数 | AA10: 就労場所① | AH10: 就労場所② | AO10: 就労時間 合計 | AP10: pm時間 合計 | AQ10: 就労有り
F11: 開始時間 | I11: 終了時間 | L11: 開始時間 | O11: 終了時間 | R11: １日の時間数 | T11: 午後１時から 午後６時 | Y11: 年月日 | Z11: 曜日 | AA11: from | AB11: to | AC11: To+ | AD11: 1日 時間 | AE11: pm From | AF11: pm To | AG11: pm 時間 | AH11: from | AI11: to | AJ11: To+ | AK11: 1日 時間 | AL11: pm From | AM11: pm To | AN11: pm 時間
B12: １週目 | C12: =IF(Y12=" "," ",MONTH(Y12)) ->  | D12: =IF(Y12=" "," ",DAY(Y12)) ->  | E12: =IF($B$8>0,VLOOKUP(Z12,$BI$13:$BJ$19,2)," ") ->  | G12: : | J12: : | M12: : | P12: : | R12: =AO12 ->  | T12: =AP12 ->  | Y12: =Y8 ->  | Z12: =IF(Y12=" "," ",WEEKDAY(Y12,1)) ->  | AA12: =IF(AB12>_0時間,TIME(F12,H12,0),_0時間) -> 0 | AB12: =IF(ISBLANK(I12)=TRUE,_0時間,IF(I12=24,TIME(0,K12,0)+_24時間,TIME(I12,K12,0))) -> 0 | AC12: =IF(AB12>_0時間,IF(AB12<=AA12,AB12+_24時間,AB12),_0時間) -> 0 | AD12: =IF(ISBLANK(F12)=TRUE,_0時間,IF(AB12=_0時間,_0時間,AC12-AA12)) -> 0 | AE12: =IF(ISBLANK(F12)=TRUE,_0時間,IF(AA12<=_13時,_13時,IF(AA12<=_18時,AA12,_0時間))) -> 0 | AF12: =IF(AC12>=_18時,_18時間,AC12) -> 0 | AG12: =IF(AE12=_0時間,_0時間,IF(AE12<=AF12,AF12-AE12,_0時間)) -> 0 | AH12: =IF(AI12>_0時間,TIME(L12,N12,0),_0時間) -> 0 | AI12: =IF(ISBLANK(O12)=TRUE,_0時間,IF(O12=24,TIME(0,Q12,0)+_24時間,TIME(O12,Q12,0))) -> 0 | AJ12: =IF(AI12>_0時間,IF(AI12<=AH12,AI12+_24時間,AI12),_0時間) -> 0 | AK12: =IF(ISBLANK(L12)=TRUE,_0時間,IF(AI12=_0時間,_0時間,AJ12-AH12)) -> 0 | AL12: =IF(ISBLANK(L12)=TRUE,_0時間,IF(AH12<=_13時,_13時,IF(AH12<=_18時,AH12,_0時間))) -> 0 | AM12: =IF(AJ12>=_18時,_18時間,AJ12) -> 0 | AN12: =IF(AL12=_0時間,_0時間,IF(AL12<=AM12,AM12-AL12,_0時間)) -> 0 | AO12: =IF(AD12+AK12>=_4時間,AD12+AK12," ") ->  | AP12: =IF(AO12<>" ",IF(AO12>=_4時間,AG12+AN12," ")," ") ->  | AQ12: =IF(AO12=" ",0,IF(AO12>=_4時間,1,0)) -> 0 | AV12: 指数①テーブル | AZ12: 指数②テーブル１ | BD12: 名前テーブル | BG12: 続柄 | BI12: 曜日テーブル | BL12: 年 | BM12: 月 | BN12: 日
C13: =IF(Y13=" "," ",IF(MONTH(Y13)=MONTH(Y12)," ",MONTH(Y13))) ->  | D13: =IF(Y13=" "," ",DAY(Y13)) ->  | G13: : | J13: : | M13: : | P13: : | R13: =AO13 ->  | T13: =AP13 ->  | Y13: =IF(Y12=" "," ",Y12+1) ->  | Z13: =IF(Y13=" "," ",WEEKDAY(Y13,1)) ->  | AA13: =IF(AB13>_0時間,TIME(F13,H13,0),_0時間) -> 0 | AB13: =IF(ISBLANK(I13)=TRUE,_0時間,IF(I13=24,TIME(0,K13,0)+_24時間,TIME(I13,K13,0))) -> 0 | AC13: =IF(AB13>_0時間,IF(AB13<=AA13,AB13+_24時間,AB13),_0時間) -> 0 | AD13: 0 | AE13: 0 | AF13: =IF(AC13>=_18時,_18時間,AC13) -> 0 | AG13: 0 | AH13: 0 | AI13: =IF(ISBLANK(O13)=TRUE,_0時間,IF(O13=24,TIME(0,Q13,0)+_24時間,TIME(O13,Q13,0))) -> 0 | AJ13: =IF(AI13>_0時間,IF(AI13<=AH13,AI13+_24時間,AI13),_0時間) -> 0 | AK13: 0 | AL13: 0 | AM13: =IF(AJ13>=_18時,_18時間,AJ13) -> 0 | AN13: 0 | AQ13: 0 | AV13: 1 | AW13: １ - １ | AX13: 20 | AZ13: 1 | BA13: １ | BB13: 8 | BD13: 0時間 | BE13: 0 | BG13: 父 | BI13: 1 | BJ13: 日 | BL13: 2025 | BM13: 1 | BN13: 1
G14: : | J14: : | M14: : | P14: : | Y14: =IF(Y13=" "," ",Y13+1) ->  | AA14: 0 | AB14: 0 | AC14: 0 | AD14: 0 | AE14: 0 | AF14: 0 | AG14: 0 | AH14: 0 | AI14: 0 | AJ14: 0 | AK14: 0 | AL14: 0 | AM14: 0 | AN14: 0 | AQ14: 0 | AV14: 2 | AW14: １ - ２ | AX14: 19 | AZ14: 2 | BA14: ２ | BB14: 6 | BD14: 12時間 | BE14: 0.5 | BG14: 母 | BI14: 2 | BJ14: 月 | BL14: 2026 | BM14: 2 | BN14: 2
G15: : | J15: : | M15: : | P15: : | AA15: 0 | AB15: 0 | AC15: 0 | AD15: 0 | AE15: 0 | AF15: 0 | AG15: 0 | AH15: 0 | AI15: 0 | AJ15: 0 | AK15: 0 | AL15: 0 | AM15: 0 | AN15: 0 | AQ15: 0 | AV15: 3 | AW15: １ - ３ | AX15: 18 | AZ15: 3 | BA15: ３ | BB15: 4 | BD15: 13時 | BE15: 0.5416666667 | BG15: その他 | BI15: 3 | BJ15: 火 | BL15: 2027 | BM15: 3 | BN15: 3
G16: : | J16: : | M16: : | P16: : | AA16: 0 | AB16: 0 | AC16: 0 | AD16: 0 | AE16: 0 | AF16: 0 | AG16: 0 | AH16: 0 | AI16: 0 | AJ16: 0 | AK16: 0 | AL16: 0 | AM16: 0 | AN16: 0 | AQ16: 0 | AV16: 4 | AW16: １ - ４ | AX16: 17 | AZ16: 4 | BA16: ４ | BB16: 2 | BD16: 15時間 | BE16: 0.625 | BI16: 4 | BJ16: 水 | BL16: 2028 | BM16: 4 | BN16: 4
G17: : | J17: : | M17: : | P17: : | AA17: 0 | AB17: 0 | AC17: 0 | AD17: 0 | AE17: 0 | AF17: 0 | AG17: 0 | AH17: 0 | AI17: 0 | AJ17: 0 | AK17: 0 | AL17: 0 | AM17: 0 | AN17: 0 | AQ17: 0 | AV17: 5 | AW17: １ - ５ | AX17: 16 | AZ17: 5 | BA17: ５ | BD17: 17時 | BE17: 0.7083333333 | BI17: 5 | BJ17: 木 | BL17: 2029 | BM17: 5 | BN17: 5
G18: : | J18: : | M18: : | P18: : | AA18: 0 | AB18: 0 | AC18: 0 | AD18: 0 | AE18: 0 | AF18: 0 | AG18: 0 | AH18: 0 | AI18: 0 | AJ18: 0 | AK18: 0 | AL18: 0 | AM18: 0 | AN18: 0 | AQ18: 0 | AV18: 6 | AW18: ２ - １ | AX18: 17 | BD18: 18時 | BE18: 0.75 | BI18: 6 | BJ18: 金 | BL18: 2030 | BM18: 6 | BN18: 6
B19: ２週目 | G19: : | J19: : | M19: : | P19: : | AA19: 0 | AB19: 0 | AC19: 0 | AD19: 0 | AE19: 0 | AF19: 0 | AG19: 0 | AH19: 0 | AI19: 0 | AJ19: 0 | AK19: 0 | AL19: 0 | AM19: 0 | AN19: 0 | AQ19: 0 | AV19: 7 | AW19: ２ - ２ | AX19: 16 | AZ19: 指数②テーブル２ | BD19: 18時間 | BE19: 0.75 | BI19: 7 | BJ19: 土 | BL19: 2031 | BM19: 7 | BN19: 7
G20: : | J20: : | M20: : | P20: : | AA20: 0 | AB20: 0 | AC20: 0 | AD20: 0 | AE20: 0 | AF20: 0 | AG20: 0 | AH20: 0 | AI20: 0 | AJ20: 0 | AK20: 0 | AL20: 0 | AM20: 0 | AN20: 0 | AQ20: 0 | AV20: 8 | AW20: ２ - ３ | AX20: 15 | AZ20: 1 | BA20: １ | BB20: 6 | BD20: 20時間 | BE20: 0.8333333333 | BM20: 8 | BN20: 8
G21: : | J21: : | M21: : | P21: : | AA21: 0 | AB21: 0 | AC21: 0 | AD21: 0 | AE21: 0 | AF21: 0 | AG21: 0 | AH21: 0 | AI21: 0 | AJ21: 0 | AK21: 0 | AL21: 0 | AM21: 0 | AN21: 0 | AQ21: 0 | AV21: 9 | AW21: ２ - ４ | AX21: 14 | AZ21: 2 | BA21: ２ | BB21: 4 | BD21: 22時 | BE21: 0.9166666667 | BM21: 9 | BN21: 9
G22: : | J22: : | M22: : | P22: : | AA22: 0 | AB22: 0 | AC22: 0 | AD22: 0 | AE22: 0 | AF22: 0 | AG22: 0 | AH22: 0 | AI22: 0 | AJ22: 0 | AK22: 0 | AL22: 0 | AM22: 0 | AN22: 0 | AQ22: 0 | AV22: 10 | AW22: ２ - ５ | AX22: 13 | AZ22: 3 | BA22: ３ | BB22: 2 | BD22: 24時間 | BE22: 1 | BM22: 10 | BN22: 10
G23: : | J23: : | M23: : | P23: : | AA23: 0 | AB23: 0 | AC23: 0 | AD23: 0 | AE23: 0 | AF23: 0 | AG23: 0 | AH23: 0 | AI23: 0 | AJ23: 0 | AK23: 0 | AL23: 0 | AM23: 0 | AN23: 0 | AQ23: 0 | AV23: 11 | AW23: ３ - １ | AX23: 14 | AZ23: 4 | BA23: ４ | BD23: 29時 | BE23: 1.208333333 | BM23: 11 | BN23: 11
G24: : | J24: : | M24: : | P24: : | AA24: 0 | AB24: 0 | AC24: 0 | AD24: 0 | AE24: 0 | AF24: 0 | AG24: 0 | AH24: 0 | AI24: 0 | AJ24: 0 | AK24: 0 | AL24: 0 | AM24: 0 | AN24: 0 | AQ24: 0 | AV24: 12 | AW24: ３ - ２ | AX24: 13 | BD24: 38時間45分 | BE24: 1.614583333 | BM24: 12 | BN24: 12
G25: : | J25: : | M25: : | P25: : | AA25: 0 | AB25: 0 | AC25: 0 | AD25: 0 | AE25: 0 | AF25: 0 | AG25: 0 | AH25: 0 | AI25: 0 | AJ25: 0 | AK25: 0 | AL25: 0 | AM25: 0 | AN25: 0 | AQ25: 0 | AV25: 13 | AW25: ３ - ３ | AX25: 12 | BD25: 48時間 | BE25: 2 | BN25: 13
B26: ３週目 | G26: : | J26: : | M26: : | P26: : | AA26: 0 | AB26: 0 | AC26: 0 | AD26: 0 | AE26: 0 | AF26: 0 | AG26: 0 | AH26: 0 | AI26: 0 | AJ26: 0 | AK26: 0 | AL26: 0 | AM26: 0 | AN26: 0 | AQ26: 0 | AV26: 14 | AW26: ３ - ４ | AX26: 11 | BD26: 4時間 | BE26: 0.1666666667 | BN26: 14
G27: : | J27: : | M27: : | P27: : | AA27: 0 | AB27: 0 | AC27: 0 | AD27: 0 | AE27: 0 | AF27: 0 | AG27: 0 | AH27: 0 | AI27: 0 | AJ27: 0 | AK27: 0 | AL27: 0 | AM27: 0 | AN27: 0 | AQ27: 0 | AV27: 15 | AW27: ３ - ５ | AX27: 10 | BD27: 5時間 | BE27: 0.2083333333 | BN27: 15
G28: : | J28: : | M28: : | P28: : | AA28: 0 | AB28: 0 | AC28: 0 | AD28: 0 | AE28: 0 | AF28: 0 | AG28: 0 | AH28: 0 | AI28: 0 | AJ28: 0 | AK28: 0 | AL28: 0 | AM28: 0 | AN28: 0 | AQ28: 0 | AV28: 99 | BD28: 6時間 | BE28: 0.25 | BN28: 16
G29: : | J29: : | M29: : | P29: : | AA29: 0 | AB29: 0 | AC29: 0 | AD29: 0 | AE29: 0 | AF29: 0 | AG29: 0 | AH29: 0 | AI29: 0 | AJ29: 0 | AK29: 0 | AL29: 0 | AM29: 0 | AN29: 0 | AQ29: 0 | BD29: 7時間 | BE29: 0.2916666667 | BN29: 17
G30: : | J30: : | M30: : | P30: : | AA30: 0 | AB30: 0 | AC30: 0 | AD30: 0 | AE30: 0 | AF30: 0 | AG30: 0 | AH30: 0 | AI30: 0 | AJ30: 0 | AK30: 0 | AL30: 0 | AM30: 0 | AN30: 0 | AQ30: 0 | BD30: 7時間45分 | BE30: 0.3229166667 | BN30: 18
G31: : | J31: : | M31: : | P31: : | AA31: 0 | AB31: 0 | AC31: 0 | AD31: 0 | AE31: 0 | AF31: 0 | AG31: 0 | AH31: 0 | AI31: 0 | AJ31: 0 | AK31: 0 | AL31: 0 | AM31: 0 | AN31: 0 | AQ31: 0 | BD31: 155時間 | BE31: 6.458333333 | BN31: 19
G32: : | J32: : | M32: : | P32: : | AA32: 0 | AB32: 0 | AC32: 0 | AD32: 0 | AE32: 0 | AF32: 0 | AG32: 0 | AH32: 0 | AI32: 0 | AJ32: 0 | AK32: 0 | AL32: 0 | AM32: 0 | AN32: 0 | AQ32: 0 | BD32: 140時間 | BE32: 5.833333333 | BN32: 20
B33: ４週目 | G33: : | J33: : | M33: : | P33: : | AA33: 0 | AB33: 0 | AC33: 0 | AD33: 0 | AE33: 0 | AF33: 0 | AG33: 0 | AH33: 0 | AI33: 0 | AJ33: 0 | AK33: 0 | AL33: 0 | AM33: 0 | AN33: 0 | AQ33: 0 | BD33: 120時間 | BE33: 5 | BN33: 21
G34: : | J34: : | M34: : | P34: : | AA34: 0 | AB34: 0 | AC34: 0 | AD34: 0 | AE34: 0 | AF34: 0 | AG34: 0 | AH34: 0 | AI34: 0 | AJ34: 0 | AK34: 0 | AL34: 0 | AM34: 0 | AN34: 0 | AQ34: 0 | BD34: 100時間 | BE34: 4.166666667 | BN34: 22
G35: : | J35: : | M35: : | P35: : | AA35: 0 | AB35: 0 | AC35: 0 | AD35: 0 | AE35: 0 | AF35: 0 | AG35: 0 | AH35: 0 | AI35: 0 | AJ35: 0 | AK35: 0 | AL35: 0 | AM35: 0 | AN35: 0 | AQ35: 0 | BD35: 80時間 | BE35: 3.333333333 | BN35: 23
G36: : | J36: : | M36: : | P36: : | AA36: 0 | AB36: 0 | AC36: 0 | AD36: 0 | AE36: 0 | AF36: 0 | AG36: 0 | AH36: 0 | AI36: 0 | AJ36: 0 | AK36: 0 | AL36: 0 | AM36: 0 | AN36: 0 | AQ36: 0 | BD36: 124時間 | BE36: 5.166666667 | BN36: 24
G37: : | J37: : | M37: : | P37: : | AA37: 0 | AB37: 0 | AC37: 0 | AD37: 0 | AE37: 0 | AF37: 0 | AG37: 0 | AH37: 0 | AI37: 0 | AJ37: 0 | AK37: 0 | AL37: 0 | AM37: 0 | AN37: 0 | AQ37: 0 | BD37: 112時間 | BE37: 4.666666667 | BN37: 25
G38: : | J38: : | M38: : | P38: : | AA38: 0 | AB38: 0 | AC38: 0 | AD38: 0 | AE38: 0 | AF38: 0 | AG38: 0 | AH38: 0 | AI38: 0 | AJ38: 0 | AK38: 0 | AL38: 0 | AM38: 0 | AN38: 0 | AQ38: 0 | BD38: 96時間 | BE38: 4 | BN38: 26
G39: : | J39: : | M39: : | P39: : | AA39: 0 | AB39: 0 | AC39: 0 | AD39: 0 | AE39: 0 | AF39: 0 | AG39: 0 | AH39: 0 | AI39: 0 | AJ39: 0 | AK39: 0 | AL39: 0 | AM39: 0 | AN39: 0 | AQ39: 0 | BD39: 80時間 | BE39: 3.333333333 | BN39: 27
O40: ４週計 | R40: =AO40 ->  | T40: =AP40 ->  | AC40: 計 | AD40: =IF(SUM(AD12:AD39)=_0時間," ",SUM(AD12:AD39)) ->  | AF40: 計 | AG40: =IF(SUM(AG12:AG39)=_0時間," ",SUM(AG12:AG39)) ->  | AJ40: 計 | AK40: =IF(SUM(AK12:AK39)=_0時間," ",SUM(AK12:AK39)) ->  | AM40: 計 | AN40: =IF(SUM(AN12:AN39)=_0時間," ",SUM(AN12:AN39)) ->  | AO40: =IF(SUM(AO12:AO39)=_0時間," ",SUM(AO12:AO39)) ->  | AP40: =IF(SUM(AP12:AP39)=_0時間," ",SUM(AP12:AP39)) ->  | AQ40: =IF(SUM(AQ12:AQ39)=0," ",SUM(AQ12:AQ39)) ->  | BD40: 64時間 | BE40: 2.666666667 | BN40: 28
AN41: value | AO41: =IF(AO40=" "," ",VALUE(TEXT(AO40,"[h]:mm:ss"))) ->  | AP41: =IF(AP40=" "," ",VALUE(TEXT(AP40,"[h]:mm:ss"))) ->  | BD41: 93時間 | BE41: 3.875 | BN41: 29
A42: 学童保育課 事務処理欄 | V42: Ver.2.0 | BD42: 84時間 | BE42: 3.5 | BN42: 30
F43: 就労日数合計 | J43: =AQ40 ->  | L43: 日 | P43: 週の就労日数の算定 | T43: =AC44 ->  | V43: 日 | BD43: 72時間 | BE43: 3 | BN43: 31
M44: 就労時間合計 | R44: =AO41 ->  | Y44: 週の就労日数の算定 | AC44: =IF(AQ40<>" ",IF(AQ40>=20,5,IF(AQ40>=16,4,IF(AQ40>=12,3," ")))," ") ->  | AD44: 日 | AF44: VALUE | BD44: 60時間 | BE44: 2.5
B45: 午後1時から午後6時の時間合計 | H45: =AP41 ->  | L45: → 週平均（4週で割る） | R45: =AF46 ->  | Y45: 午後1時から午後6時の時間上限 | AC45: =IF(AC44=" "," ",_5時間*AC44*4) ->  | AF45: =IF(AC45=" "," ",VALUE(TEXT(AC45,"[h]:mm"))) -> 
R46: =AC47 ->  | Y46: 午後1～6の週平均（4週で割る） | AC46: =IF(AC44=" "," ",IF(AP41=" "," ",IF(AP41>AF45,AF45/4,AP41/4))) ->  | AF46: =IF(AC46=" "," ",VALUE(TEXT(AC46,"[h]:mm:ss"))) -> 
AC47: =IF(AC44=" "," ",IF(AP41=" "," ",IF(AP41>AF45,"（午後の上限で算定）"," "))) -> 
J48: 就労日数 | P48: 基準番号 | T48: 基準指数
J49: =AJ51 ->  | P49: =AK51 ->  | T49: =AI51 -> 
AC50: 指数①判定 | AF50: 指数②判定 | AI50: 計 | AJ50: 就労日数 | AK50: 基準番号
AC51: =IF(AC44=5,IF(AO41>_155時間,1,IF(AO41>_140時間,2,IF(AO41>_120時間,3,IF(AO41>_100時間,4,IF(AO41>=_80時間,5,99))))),IF(AC44=4,IF(AO41>_124時間,6,IF(AO41>_112時間,7,IF(AO41>_96時間,8,IF(AO41>_80時間,9,IF(AO41>=_64時間,10,99))))),IF(AC44=3,IF(AO41>_93時間,11,IF(AO41>_84時間,12,IF(AO41>_72時間,13,IF(AO41>_60時間,14,IF(AO41>=_48時間,15,99))))),99))) -> 99 | AD51: =IF(AC51<99,VLOOKUP(AC51,AV13:AX28,2,TRUE)," ") ->  | AE51: =IF(AC51<99,VLOOKUP(AC51,AV13:AX28,3,TRUE),0) -> 0 | AF51: =IF(AC51=99," ",IF(AC51<11,IF(AF46>_20時間,1,IF(AF46>_18時間,2,IF(AF46>_15時間,3,IF(AF46>=_12時間,4,5)))),IF(AF46>_18時間,1,IF(AF46>_15時間,2,IF(AF46>=_12時間,3,4))))) ->  | AG51: =IF(AC51<99,IF(AC51<11,VLOOKUP(AF51,AZ13:BB17,2,TRUE),VLOOKUP(AF51,AZ20:BB23,2,TRUE))," ") ->  | AH51: =IF(AF51<99,IF(AC51<11,VLOOKUP(AF51,AZ13:BB17,3,TRUE),VLOOKUP(AF51,AZ20:BB23,3,TRUE))," ") ->  | AI51: =IF(AE51>0,AE51+AH51," ") ->  | AJ51: =IF(AC44<>" ",IF(AC44=5,"1（週５日）",IF(AC44=4,"2（週４日）",IF(AC44=3,"3（週３日）"," ")))," ") ->  | AK51: =IF(AD51=" "," ",_xlfn.CONCAT(AD51," - ",AG51)) -> 

Sheet 記載例 (3) (hidden)
B1: 就労証明書（学童保育室入室申請用）
A3: 足立区長・民設学童保育室代表者 | J3: 宛 | P3: ※本証明書は、自営業または就労者本人しか記入担当者になり得ない場合を除き、 就労者本人が本人記載欄以外の項目を記入した場合は、証明が無効となります。
A5: ① 証明書発行事業所名 | G5: ○×▼製作所株式会社 | Q5: ④ 証明日 | V5: 西暦 | W5: ２０２２ | Y5: 年 | Z5: １０ | AB5: 月 | AC5: ３０ | AE5: 日
A6: ② 証明書発行事業所住所 | G6: 東京都足立区中央本町９－１７－１ | Q6: ⑤ 記載内容の 問合せ先 | T6: 担当部署 | V6: 総務部人事課
A7: ③ 証明書発行責任者氏名 | G7: 住区 三郎 | T7: 担当者名 | V7: 人事課 太郎
A8: ④ 証明書発行責任者役職 | T8: 電話番号 | V8: ０３ | X8: ― | Y8: ００００ | AB8: ― | AC8: ００００
A9: 下記の内容について、事実であることを証明いたします（ただし、発行者が証明日時点で把握している情報に限る）。
A10: ※本証明書の内容について、就労先事業者等に無断で作成し又は改変を行ったときは、刑法上の罪に問われる場合があります。
A11: No. | B11: 項目 | G11: 記載欄
A12: 1 | B12: フリガナ | G12: アダチク タロウ
B13: 本人氏名 | G13: 足立区 太郎
B14: 本人住所 | G14: 東京都足立区中央本町１－１７－１ 足立区役所マンション１０５
A15: 本人の就労状況、就労先（就労予定先の場合も含む）に関する項目
A16: 2 | B16: 就労状況･予定 | G16: ■ | H16: 就労中 | J16: □ | K16: 産休・育休中 | N16: □ | O16: 就労予定（転勤内定含む） | T16: □ | U16: その他（ | AE16: )
A17: 3 | B17: 主な就労先事業所名 | G17: ○×▼製作所株式会社 三鷹作業所 | T17: 電話番号 | V17: ０３ | X17: ― | Y17: ５５５５ | AB17: ― | AC17: ８８８８
A18: 4 | B18: 主な就労先住所 | G18: 東京都三鷹市井の頭南１－１－１０
G19: 通勤手段 | M19: 自宅の最寄り（ | U19: ) | V19: 就労先の最寄り | Y19: ( | AE19: ）
S20: ( | AA20: ）
A21: 本人との契約（雇用契約等、就労に関する契約）・就業規則の内容に関する項目 ※実際に働いた時間ではなく、雇用契約・就業規則の内容に関する事項を記載してください。
A22: 5 | B22: 就労形態 | G22: 役員･自営業主 | K22: □ | L22: 役員(会社の取締役･監査役、法人の理事等) | U22: □ | V22: 自営業主（個人事業主）
G23: 被雇用者 | K23: □ | L23: 正規の職員・従業員 | P23: □ | Q23: パート・アルバイト | U23: □ | V23: 派遣社員 | X23: □ | Y23: 契約・嘱託社員
K24: □ | L24: 会計年度任用職員 | P24: □ | Q24: 自営業専従者
G25: その他 | K25: □ | L25: 内職者 | N25: □ | O25: 家族従業者 | R25: □ | S25: 業務委託 | U25: □ | V25: その他（ | AE25: )
B26: 働き方 | G26: □ | H26: 固定労働時間制 | K26: □ | L26: フレックスタイム制 | O26: □ | P26: 裁量労働制・みなし労働制 | U26: ■ | V26: 不規則・変形労働時間制（No11に勤務実績を記入すること）
G27: □ | H27: その他 | J27: ( | AE27: )
A28: 6 | B28: 就労日数 | G28: １月当たり | J28: １６ | L28: 日 | M28: ・ | N28: １週当たり | Q28: ４ | S28: 日 | AC28: ※事務処理欄
A29: 7 | B29: 就労時間 | G29: 月 | H29: ７６ | J29: 時間 | L29: ００ | N29: 分 | O29: 週 | P29: １９ | R29: 時間 | T29: ００ | V29: 分
B30: ※ 残業時間を除き休憩時間 を含む | G30: 日 | H30: ４ | J30: 時間 | L30: 45 | N30: 分 | O30: （うち休憩時間 | R30: 0 | T30: 分）
A31: 8 | B31: 就労時間帯 | G31: 時間帯（固定） | L31: 時 | O31: 分 | P31: ～ | S31: 時 | V31: 分 | W31: （うち休憩時間 | AB31: 分）
J32: □ | K32: 月 | L32: □ | M32: 火 | N32: □ | O32: 水 | P32: □ | Q32: 木 | R32: □ | S32: 金 | T32: □ | U32: 土 | V32: □ | W32: 日
G33: 時間帯（月） | J33: １２ | L33: 時 | M33: ００ | O33: 分 | P33: ～ | Q33: １６ | S33: 時 | T33: ００ | V33: 分 | W33: （うち休憩時間 | Z33: ０ | AB33: 分）
B34: ※ 残業時間を除き休憩時間 を含む ※ フレックスタイム制、裁量 労働制の場合は標準的な 就労時間帯を記入 ※ 勤務日や時間帯が不規則 に変動する場合は、この 欄は記載せず項目11の欄 を記入する | G34: 時間帯（火） | L34: 時 | O34: 分 | P34: ～ | S34: 時 | V34: 分 | W34: （うち休憩時間 | AB34: 分）
G35: 時間帯（水） | J35: １３ | L35: 時 | M35: ００ | O35: 分 | P35: ～ | Q35: １７ | S35: 時 | T35: ００ | V35: 分 | W35: （うち休憩時間 | Z35: ０ | AB35: 分）
G36: 時間帯（木） | L36: 時 | O36: 分 | P36: ～ | S36: 時 | V36: 分 | W36: （うち休憩時間 | AB36: 分）
G37: 時間帯（金） | J37: １２ | L37: 時 | M37: ００ | O37: 分 | P37: ～ | Q37: １６ | S37: 時 | T37: ００ | V37: 分 | W37: （うち休憩時間 | AB37: 分）
G38: 時間帯（土） | J38: ９ | L38: 時 | M38: ００ | O38: 分 | P38: ～ | Q38: １６ | S38: 時 | T38: ００ | V38: 分 | W38: （うち休憩時間 | Z38: ４５ | AB38: 分）
G39: 時間帯（日） | L39: 時 | O39: 分 | P39: ～ | S39: 時 | V39: 分 | W39: （うち休憩時間 | AB39: 分）
G40: 備 考 | AC40: 午後 合計
AC41: 基番
AC42: 基指
A43: 9 | B43: 短時間勤務制度の取得 （予定を含む） ※ 就労時間は、残業時間を除き 休憩時間を含む | G43: 就労時間 | L43: 時 | O43: 分 | P43: ～ | S43: 時 | V43: 分 | W43: （１日 | Z43: 時間 | AC43: 分勤務）
G44: 取得期間 | L44: 年 | N44: 月 | P44: 日 | Q44: ～ | T44: 年 | V44: 月 | X44: 日
A45: 10 | B45: 雇用（予定）期間等 | G45: 雇用契約状況 | L45: ■ | M45: 無期 | O45: □ | P45: 有期
B46: ※ 契約締結日ではなく、就労 開始（予定）日を記入 | G46: 就労（予定）期間 （有期の者は終了日も記入） | L46: （開始日） | N46: １９９１ | P46: 年 | Q46: ４ | R46: 月 | S46: １ | T46: 日 | U46: ～ | V46: （終了日） | Z46: 年 | AB46: 月 | AD46: 日
G47: 満了後の更新の有無 (有期の場合のみ記載) | L47: □ | M47: 有 | O47: □ | P47: 有（見込み） | S47: □ | T47: 未定
A48: 本人の就労実績（就労予定等で実績がない場合は、今後の就労見込み）に関する項目 ※不規則勤務に該当しない方は記入不要です。
A49: 11 | B49: 不規則勤務等における 直近４週間の勤務実績 | G49: 就労期間 | N49: １週目 | R49: ２週目 | V49: ３週目 | Z49: ４週目 | AD49: ※事務処理欄
M50: 自 | N50: １０ | O50: 月 | P50: ２ | Q50: 日 | R50: １０ | S50: 月 | T50: ９ | U50: 日 | V50: １０ | W50: 月 | X50: １６ | Y50: 日 | Z50: １０ | AA50: 月 | AB50: ２３ | AC50: 日
G51: ※ 連続する４週間を１週間ごとに 区切って記入 | M51: 至 | N51: １０ | O51: 月 | P51: ８ | Q51: 日 | R51: １０ | S51: 月 | T51: １５ | U51: 日 | V51: １０ | W51: 月 | X51: ２２ | Y51: 日 | Z51: １０ | AA51: 月 | AB51: ２９ | AC51: 日
B52: ※ 連続する４週間の実績 ※ 就労日数は、有給休暇等 を含む ※ 就労時間は、残業時間を 除き休憩時間を含む ※ 時期により勤務実績に差 がある場合は、繁忙期や 標準的な実績を記入 | G52: １日４時間以上の就労日数 | N52: ４ | Q52: 日 | R52: ４ | U52: 日 | V52: ４ | Y52: 日 | Z52: ５ | AC52: 日
G53: 上記就労日数の就労時間合計 | N53: 33 | O53: 時間 | P53: 00 | Q53: 分 | R53: 33 | S53: 時間 | T53: 00 | U53: 分 | V53: 29 | W53: 時間 | X53: 15 | Y53: 分 | Z53: 32 | AA53: 時間 | AB53: 15 | AC53: 分
G54: 上記就労時間合計に含まれる 午後１時から午後５時の合計時間 | N54: 16 | O54: 時間 | P54: 00 | Q54: 分 | R54: 16 | S54: 時間 | T54: 00 | U54: 分 | V54: 16 | W54: 時間 | X54: 00 | Y54: 分 | Z54: 18 | AA54: 時間 | AB54: 30 | AC54: 分
G55: 月２回以上の深夜勤務の有無 | N55: □ | O55: 有 | P55: ■ | Q55: 無 | R55: ※深夜勤務とは、２２時から翌５時までの時間帯を含む勤務
A56: 育児に関する休業・短時間勤務制度に関する項目
A57: 12 | B57: 産前･産後休業の 取得(予定)期間 | G57: □ | H57: 取得予定 | L57: 年 | O57: 月 | R57: 日 | T57: ～ | W57: 年 | Z57: 月 | AC57: 日
G58: □ | H58: 取得中 | L58: 年 | O58: 月 | R58: 日 | T58: ～ | W58: 年 | Z58: 月 | AC58: 日
A59: 13 | B59: 育児休業の 取得(予定)期間 | G59: □ | H59: 取得予定 | L59: 年 | O59: 月 | R59: 日 | T59: ～ | W59: 年 | Z59: 月 | AC59: 日
G60: □ | H60: 取得中 | L60: 年 | O60: 月 | R60: 日 | T60: ～ | W60: 年 | Z60: 月 | AC60: 日
A61: 14 | B61: 復職（予定）日 | I61: 年 | L61: 月 | O61: 日
A62: 備考
A63: 備考
A64: 足立区学童保育室入室申請用追加項目
A65: 本人の就労状況、就労先（就労予定先の場合も含む）に関する追加項目
A66: 15 | B66: 就労場所 | G66: ■ | H66: 自宅外就労 | K66: □ | L66: 自宅内就労 | O66: ※４週あたりの勤務日数が４分の３以上の勤務地を選択
B67: 単身赴任 | G67: □ | I67: 有 | K67: 期間 | M67: 赴任開始日（赴任予定日） | V67: ～ | W67: 赴任終了日※未定の場合は記載不要
O68: 年 | R68: 月 | U68: 日 | V68: ～ | Y68: 年 | AB68: 月 | AE68: 日
G69: 赴任（予定）地
A70: （※事業者証明欄はここまで）
B72: ◆◆◆◆◆◆◆◆◆◆◆◆◆◆ 以下は保護者（就労者）の方がご記入ください ◆◆◆◆◆◆◆◆◆◆◆◆◆◆
A74: 本就労証明書を添付する申請児童
A75: 保護者 記載欄 | C75: 第一希望保育室名 | G75: 五反野学童保育室 | N75: 申請児童名１ | Q75: 足立区 花美 | W75: 学年 | X75: ４年 | Z75: 児童との 続柄
C76: 第一希望保育室名 | G76: 足立学童保育室 | N76: 申請児童名２ | Q76: 足立区 花太郎 | W76: 学年 | X76: ２年
C77: 第一希望保育室名 | N77: 申請児童名３ | W77: 学年 | AB77: ■ | AC77: 父 | AD77: □ | AE77: 母
C78: 第一希望保育室名 | N78: 申請児童名４ | W78: 学年
C79: 第一希望保育室名 | N79: 申請児童名５ | W79: 学年
A83: ＊足立区説明欄＊
A84: 【記入における注意点】
A85: ・ 入室申請書の提出日から３か月以内に証明されたものが有効となります。
A86: ・ 記入漏れや記入誤りがある場合は、入室審査において不利となる場合や無効な証明書として審査保留となる場合があります。
A87: ・ この証明書は就労先事業所で記入してください。個人事業主・法人経営者は、ご本人以外で実際に勤務を管理している方が記入し、やむをえない場合 のみ自署してください。
A88: ・ 証明書の記入担当者以外の者が事業者証明欄の項目を記入した場合は、証明が無効となります。また、本証明書を無断で作成・改変を行った場合は、 就労先事業所の押印がなくても有印私文書偽造罪・有印私文書変造罪等に該当する場合がありますのでご注意ください。
A89: ・ 鉛筆や消えるボールペン等、記載内容を消せる筆記具で記入した場合は証明が無効となります。
A90: ・ 訂正する場合は、記入担当者が訂正箇所を二重線で抹消し、余白に正しい内容を記入してください。修正液や修正テープでの訂正は不可です。
A91: ・ 支店長・営業所長等が雇用主となる場合は、支店長・営業所長の証明で問題ありません。
A92: ・ 社印もしくは代表者印の押印は省略することが可能です。
A93: ・ 証明書の内容について就労先に照会させていただく場合があります。
A94: ・ 記載内容に虚偽があった場合は、申請を無効とし入室承認を取り消すことがあります。
A95: 【項目9について】
A96: ・ 短時間勤務制度を取得中の場合は記入してください。また、新規の取得や期間継続をする見込みがある場合は予定を記入してください。
A97: ・ 就労時間には、就業規則等で定められている休憩時間を含めますが残業時間は除いてください。
A98: ・ 本項目に記入がある場合は、短時間勤務制度を取得する前提で審査を行います。制度取得の有無について事業者と就労者の双方で確認して記入してくだ さい。
A99: 【項目11について】
A100: ・ 勤務日や勤務時間帯がシフトやローテーション表などで定められ、不規則に変動する働き方の場合は、この欄を記入してください。
A101: ・ ４週間の勤務実績は連続する週を記入してください。就労予定等で勤務実績がない場合は、今後の就労見込みを記入してください。
A102: ・ 就労する時期によって日数や時間に差がある場合は、過去１年間における繁忙期もしくは標準的に勤務した期間の実績を記入してください。
A103: ・ 勤務日は就労時間が１日４時間以上が勤務日の対象となります。有給休暇や祝日のため実際には勤務が無かった場合でも、１日４時間以上の勤務を割り 振っている場合は、勤務日に含めてください。
A104: ・ 就労時間には、就業規則等で定められている休憩時間を含めますが残業時間は除いてください。
A105: 【項目15「就労場所」について】
A106: ・ 就労先住所が自宅住所(同敷地内)の場合は、自宅内としてください。
A107: ・ 就労先住所が自宅住所の場合でも、毎日の仕事はお客様宅など外出先で行う場合は自宅外としてください。仕事が自宅内、自宅外の両方の場合は、 月（４週）あたりの勤務日数が４分の３以上となる勤務地を選択してください。
A108: ・ 自宅内の仕事で、プレス・研磨・裁断機・有機溶剤等有害薬品・高熱バーナーを使用する場合は申し出てください。自宅外就労として扱います。

Sheet 勤務ローテーション (2) (hidden)
A1: 通常保育ローテーション表
B2: 月 | G2: 火 | L2: 水 | Q2: 木 | V2: 金 | AA2: 土
B3: 始 | C3: 終 | D3: 休憩 | E3: 勤務 時間 | F3: 出勤 | G3: 始 | H3: 終 | I3: 休憩 | J3: 勤務 時間 | K3: 出勤 | L3: 始 | M3: 終 | N3: 休憩 | O3: 勤務 時間 | P3: 出勤 | Q3: 始 | R3: 終 | S3: 休憩 | T3: 勤務 時間 | U3: 出勤 | V3: 始 | W3: 終 | X3: 休憩 | Y3: 勤務 時間 | Z3: 出勤 | AA3: 始 | AB3: 終 | AC3: 休憩 | AD3: 勤務 時間 | AE3: 出勤
A4: 1週目 | G4: 0.4479166667 | H4: 0.7604166667 | I4: 0.03125 | J4: =H4-G4 -> 0.3125 | K4: 出 | Q4: 0.40625 | R4: 0.7604166667 | S4: 0.03125 | T4: =R4-Q4 -> 0.3541666667 | U4: 出 | V4: 0.40625 | W4: 0.7604166667 | X4: 0.03125 | Y4: =W4-V4 -> 0.3541666667 | Z4: 出 | AA4: 0.3541666667 | AB4: 0.7083333333 | AC4: 0.03125 | AD4: =AB4-AA4 -> 0.3541666667 | AE4: 出 | AF4: =E4+J4+O4+T4+Y4+AD4 -> 1.375
A5: 2週目 | B5: 0.4479166667 | C5: 0.7604166667 | D5: 0.03125 | E5: =C5-B5 -> 0.3125 | F5: 有休 | L5: 0.40625 | M5: 0.7604166667 | N5: 0.03125 | O5: =M5-L5 -> 0.3541666667 | P5: 出 | Q5: 0.40625 | R5: 0.7604166667 | S5: 0.03125 | T5: =R5-Q5 -> 0.3541666667 | U5: 出 | AA5: 0.40625 | AB5: 0.7604166667 | AC5: 0.03125 | AD5: =AB5-AA5 -> 0.3541666667 | AE5: 出 | AF5: =E5+J5+O5+T5+Y5+AD5 -> 1.375
A6: 3週目 | B6: 0.4375 | C6: 0.7604166667 | D6: 0.03125 | E6: =C6-B6 -> 0.3229166667 | F6: 出 | G6: 0.5104166667 | H6: 0.7604166667 | I6: 0 | J6: =H6-G6 -> 0.25 | K6: 出 | L6: 0.4375 | M6: 0.7604166667 | N6: 0.03125 | O6: =M6-L6 -> 0.3229166667 | P6: 出 | Q6: 0.3958333333 | R6: 0.5208333333 | S6: 0 | T6: =R6-Q6 -> 0.125 | U6: 出 | V6: 0.4375 | W6: 0.7604166667 | X6: 0.03125 | Y6: =W6-V6 -> 0.3229166667 | Z6: 出 | AF6: =E6+J6+O6+Y6+AD6 -> 1.21875
A7: 4週目 | B7: 0.5520833333 | C7: 0.7604166667 | D7: 0 | E7: =C7-B7 -> 0.2083333333 | F7: 出 | G7: 0.4375 | H7: 0.7604166667 | I7: 0.03125 | J7: =H7-G7 -> 0.3229166667 | K7: 出 | L7: 0.4375 | M7: 0.7604166667 | N7: 0.03125 | O7: =M7-L7 -> 0.3229166667 | P7: 出 | Q7: 0.3958333333 | R7: 0.71875 | S7: 0.03125 | T7: =R7-Q7 -> 0.3229166667 | U7: 出 | V7: 0.59375 | W7: 0.7604166667 | X7: 0 | Y7: =W7-V7 -> 0.1666666667 | Z7: 出 | AF7: 1.34375
E8: 03:45:00 | J8: 04:00:00 | O8: 04:00:00 | T8: 04:00:00 | Y8: 02:45:00 | AF8: 0.7708333333

Sheet 記載例 (hidden)
B1: 就労証明書（学童保育室入室申請用）
A3: 足立区長・民設学童保育室代表者 | J3: 宛 | P3: ※本証明書は、自営業または就労者本人しか記入担当者になり得ない場合を除き、 就労者本人が本人記載欄以外の項目を記入した場合は、証明が無効となります。
A5: ① 証明書発行事業所名 | G5: ○×▼製作所株式会社 | Q5: ④ 証明日 | V5: 西暦 | W5: ２０２２ | Y5: 年 | Z5: １０ | AB5: 月 | AC5: ３０ | AE5: 日
A6: ② 証明書発行事業所住所 | G6: 東京都足立区中央本町９－１７－１ | Q6: ⑤ 記載内容の 問合せ先 | T6: 担当部署 | V6: 総務部人事課
A7: ③ 証明書発行責任者氏名 | G7: 住区 三郎 | T7: 担当者名 | V7: 人事課 太郎
A8: ④ 証明書発行責任者役職 | T8: 電話番号 | V8: ０３ | X8: ― | Y8: ００００ | AB8: ― | AC8: ０００◆
A9: 下記の内容について、事実であることを証明いたします（ただし、発行者が証明日時点で把握している情報に限る）。
A10: ※本証明書の内容について、就労先事業者等に無断で作成し又は改変を行ったときは、刑法上の罪に問われる場合があります。
A11: No. | B11: 項目 | G11: 記載欄
A12: 1 | B12: フリガナ | G12: アダチク タロウ
B13: 本人氏名 | G13: 足立区 太郎
B14: 本人住所 | G14: 東京都足立区中央本町１－１７－１ 足立区役所マンション１０５
A15: 本人の就労状況、就労先（就労予定先の場合も含む）に関する項目
A16: 2 | B16: 就労状況･予定 | G16: ■ | H16: 就労中 | J16: □ | K16: 産休・育休中 | N16: □ | O16: 就労予定（転勤内定含む） | T16: □ | U16: その他（ | AE16: )
A17: 3 | B17: 主な就労先事業所名 | G17: ○×▼製作所株式会社 三鷹作業所 | T17: 電話番号 | V17: ０３ | X17: ― | Y17: ５５５× | AB17: ― | AC17: ８８８△
A18: 4 | B18: 主な就労先住所 | G18: 東京都三鷹市井の頭南１－１－１０
G19: 通勤手段 | M19: 自宅の最寄り（ | U19: ) | V19: 就労先の最寄り | Y19: ( | AE19: ）
S20: ( | AA20: ）
A21: 本人との契約（雇用契約等、就労に関する契約）・就業規則の内容に関する項目 ※実際に働いた時間ではなく、雇用契約・就業規則の内容に関する事項を記載してください。
A22: 5 | B22: 就労形態 | G22: 役員･自営業主 | K22: □ | L22: 役員(会社の取締役･監査役、法人の理事等) | U22: □ | V22: 自営業主（個人事業主）
G23: 被雇用者 | K23: ■ | L23: 正規の職員・従業員 | P23: □ | Q23: パート・アルバイト | U23: □ | V23: 派遣社員 | X23: □ | Y23: 契約・嘱託社員
K24: □ | L24: 会計年度任用職員 | P24: □ | Q24: 自営業専従者
G25: その他 | K25: □ | L25: 内職者 | N25: □ | O25: 家族従業者 | R25: □ | S25: 業務委託 | U25: □ | V25: その他（ | AE25: )
B26: 働き方 | G26: ■ | H26: 固定労働時間制 | K26: □ | L26: フレックスタイム制 | O26: □ | P26: 裁量労働制・みなし労働制 | U26: □ | V26: 不規則・変形労働時間制（No11に勤務実績を記入すること）
G27: □ | H27: その他 | J27: ( | AE27: )
A28: 6 | B28: 就労日数 | G28: １月当たり | J28: ２０ | L28: 日 | M28: ・ | N28: １週当たり | Q28: ５ | S28: 日 | AC28: ※事務処理欄
A29: 7 | B29: 就労時間 | G29: 月 | H29: １８０ | J29: 時間 | L29: ００ | N29: 分 | O29: 週 | P29: ４５ | R29: 時間 | T29: ００ | V29: 分
B30: ※ 残業時間を除き休憩時間 を含む | G30: 日 | H30: ８ | J30: 時間 | L30: ４５ | N30: 分 | O30: （うち休憩時間 | R30: ６０ | T30: 分）
A31: 8 | B31: 就労時間帯 | G31: 時間帯（固定） | J31: ８ | L31: 時 | M31: ３０ | O31: 分 | P31: ～ | Q31: １７ | S31: 時 | T31: １５ | V31: 分 | W31: （うち休憩時間 | Z31: ６０ | AB31: 分）
J32: ■ | K32: 月 | L32: ■ | M32: 火 | N32: ■ | O32: 水 | P32: ■ | Q32: 木 | R32: ■ | S32: 金 | T32: □ | U32: 土 | V32: □ | W32: 日
G33: 時間帯（月） | L33: 時 | O33: 分 | P33: ～ | S33: 時 | V33: 分 | W33: （うち休憩時間 | AB33: 分）
B34: ※ 残業時間を除き休憩時間 を含む ※ フレックスタイム制、裁量 労働制の場合は標準的な 就労時間帯を記入 ※ 勤務日や時間帯が不規則 に変動する場合は、この 欄は記載せず項目11の欄 に記入する | G34: 時間帯（火） | L34: 時 | O34: 分 | P34: ～ | S34: 時 | V34: 分 | W34: （うち休憩時間 | AB34: 分）
G35: 時間帯（水） | L35: 時 | O35: 分 | P35: ～ | S35: 時 | V35: 分 | W35: （うち休憩時間 | AB35: 分）
G36: 時間帯（木） | L36: 時 | O36: 分 | P36: ～ | S36: 時 | V36: 分 | W36: （うち休憩時間 | AB36: 分）
G37: 時間帯（金） | L37: 時 | O37: 分 | P37: ～ | S37: 時 | V37: 分 | W37: （うち休憩時間 | AB37: 分）
G38: 時間帯（土） | L38: 時 | O38: 分 | P38: ～ | S38: 時 | V38: 分 | W38: （うち休憩時間 | AB38: 分）
G39: 時間帯（日） | L39: 時 | O39: 分 | P39: ～ | S39: 時 | V39: 分 | W39: （うち休憩時間 | AB39: 分）
G40: 備 考 | AC40: 午後 合計
AC41: 基番
AC42: 基指
A43: 9 | B43: 短時間勤務制度の取得 （予定を含む） ※ 就労時間は、残業時間を除き 休憩時間を含む | G43: 就労時間 | J43: ９ | L43: 時 | M43: ００ | O43: 分 | P43: ～ | Q43: １６ | S43: 時 | T43: ４５ | V43: 分 | W43: （１日 | X43: ７ | Z43: 時間 | AA43: ４５ | AC43: 分勤務）
G44: 取得期間 | J44: ２０２２ | L44: 年 | M44: ９ | N44: 月 | O44: １ | P44: 日 | Q44: ～ | R44: ２０２３ | T44: 年 | U44: ３ | V44: 月 | W44: ３１ | X44: 日
A45: 10 | B45: 雇用（予定）期間等 | G45: 雇用契約状況 | L45: ■ | M45: 無期 | O45: □ | P45: 有期
B46: ※ 契約締結日ではなく、就労 開始（予定）日を記入 | G46: 就労（予定）期間 （有期の者は終了日も記入） | L46: （開始日） | N46: １９９１ | P46: 年 | Q46: ４ | R46: 月 | S46: １ | T46: 日 | U46: ～ | V46: （終了日） | Z46: 年 | AB46: 月 | AD46: 日
G47: 満了後の更新の有無 (有期の場合のみ記載) | L47: □ | M47: 有 | O47: □ | P47: 有（見込み） | S47: □ | T47: 未定
A48: 本人の就労実績（就労予定等で実績がない場合は、今後の就労見込み）に関する項目 ※不規則勤務に該当しない方は記入不要です。
A49: 11 | B49: 不規則勤務等における 直近４週間の勤務実績 | G49: 就労期間 | N49: １週目 | R49: ２週目 | V49: ３週目 | Z49: ４週目 | AD49: ※事務処理欄
M50: 自 | O50: 月 | Q50: 日 | S50: 月 | U50: 日 | W50: 月 | Y50: 日 | AA50: 月 | AC50: 日
G51: ※ 連続する４週間を１週間ごとに 区切って記入 | M51: 至 | O51: 月 | Q51: 日 | S51: 月 | U51: 日 | W51: 月 | Y51: 日 | AA51: 月 | AC51: 日
B52: ※ 連続する４週間の実績 ※ 就労日数は、有給休暇等 を含む ※ 就労時間は、残業時間を 除き休憩時間を含む ※ 時期により勤務実績に差 がある場合は、繁忙期や 標準的な実績を記入 | G52: １日４時間以上の就労日数 | Q52: 日 | U52: 日 | Y52: 日 | AC52: 日
G53: 上記就労日数の就労時間合計 | O53: 時間 | Q53: 分 | S53: 時間 | U53: 分 | W53: 時間 | Y53: 分 | AA53: 時間 | AC53: 分
G54: 上記就労時間合計に含まれる 午後１時から午後５時の合計時間 | O54: 時間 | Q54: 分 | S54: 時間 | U54: 分 | W54: 時間 | Y54: 分 | AA54: 時間 | AC54: 分
G55: 月２回以上の深夜勤務の有無 | N55: □ | O55: 有 | P55: □ | Q55: 無 | R55: ※深夜勤務とは、２２時から翌５時までの時間帯を含む勤務
A56: 育児に関する休業・短時間勤務制度に関する項目
A57: 12 | B57: 産前･産後休業の 取得(予定)期間 | G57: □ | H57: 取得予定 | L57: 年 | O57: 月 | R57: 日 | T57: ～ | W57: 年 | Z57: 月 | AC57: 日
G58: □ | H58: 取得中 | L58: 年 | O58: 月 | R58: 日 | T58: ～ | W58: 年 | Z58: 月 | AC58: 日
A59: 13 | B59: 育児休業の 取得(予定)期間 | G59: □ | H59: 取得予定 | L59: 年 | O59: 月 | R59: 日 | T59: ～ | W59: 年 | Z59: 月 | AC59: 日
G60: □ | H60: 取得中 | L60: 年 | O60: 月 | R60: 日 | T60: ～ | W60: 年 | Z60: 月 | AC60: 日
A61: 14 | B61: 復職（予定）日 | I61: 年 | L61: 月 | O61: 日
A62: 備考
A63: 備考
A64: 足立区学童保育室入室申請用追加項目
A65: 本人の就労状況、就労先（就労予定先の場合も含む）に関する追加項目
A66: 15 | B66: 就労場所 | G66: ■ | H66: 自宅外就労 | K66: □ | L66: 自宅内就労 | O66: ※４週あたりの勤務日数が４分の３以上の勤務地を選択
B67: 単身赴任 | G67: □ | I67: 有 | K67: 期間 | M67: 赴任開始日（赴任予定日） | V67: ～ | W67: 赴任終了日※未定の場合は記載不要
O68: 年 | R68: 月 | U68: 日 | V68: ～ | Y68: 年 | AB68: 月 | AE68: 日
G69: 赴任（予定）地
A70: （※事業者証明欄はここまで）
B72: ◆◆◆◆◆◆◆◆◆◆◆◆◆◆ 以下は保護者（就労者）の方がご記入ください ◆◆◆◆◆◆◆◆◆◆◆◆◆◆
A74: 本就労証明書を添付する申請児童
A75: 保護者 記載欄 | C75: 第一希望保育室名 | G75: 五反野学童保育室 | N75: 申請児童名１ | Q75: 足立区 花美 | W75: 学年 | X75: ４年 | Z75: 児童との 続柄
C76: 第一希望保育室名 | G76: 足立学童保育室 | N76: 申請児童名２ | Q76: 足立区 花太郎 | W76: 学年 | X76: ２年
C77: 第一希望保育室名 | N77: 申請児童名３ | W77: 学年 | AB77: ■ | AC77: 父 | AD77: □ | AE77: 母
C78: 第一希望保育室名 | N78: 申請児童名４ | W78: 学年
C79: 第一希望保育室名 | N79: 申請児童名５ | W79: 学年
A83: ＊足立区説明欄＊
A84: 【記入における注意点】
A85: ・ 入室申請書の提出日から３か月以内に証明されたものが有効となります。
A86: ・ 記入漏れや記入誤りがある場合は、入室審査において不利となる場合や無効な証明書として審査保留となる場合があります。
A87: ・ この証明書は就労先事業所で記入してください。個人事業主・法人経営者は、ご本人以外で実際に勤務を管理している方が記入し、やむをえない場合 のみ自署してください。
A88: ・ 証明書の記入担当者以外の者が事業者証明欄の項目を記入した場合は、証明が無効となります。また、本証明書を無断で作成・改変を行った場合は、 就労先事業所の押印がなくても有印私文書偽造罪・有印私文書変造罪等に該当する場合がありますのでご注意ください。
A89: ・ 鉛筆や消えるボールペン等、記載内容を消せる筆記具で記入した場合は証明が無効となります。
A90: ・ 訂正する場合は、記入担当者が訂正箇所を二重線で抹消し、余白に正しい内容を記入してください。修正液や修正テープでの訂正は不可です。
A91: ・ 支店長・営業所長等が雇用主となる場合は、支店長・営業所長の証明で問題ありません。
A92: ・ 社印もしくは代表者印の押印は省略することが可能です。
A93: ・ 証明書の内容について就労先に照会させていただく場合があります。
A94: ・ 記載内容に虚偽があった場合は、申請を無効とし入室承認を取り消すことがあります。
A95: 【項目9について】
A96: ・ 短時間勤務制度を取得中の場合は記入してください。また、新規の取得や期間継続をする見込みがある場合は予定を記入してください。
A97: ・ 就労時間には、就業規則等で定められている休憩時間を含めますが残業時間は除いてください。
A98: ・ 本項目に記入がある場合は、短時間勤務制度を取得する前提で審査を行います。制度取得の有無について事業者と就労者の双方で確認して記入してくだ さい。
A99: 【項目11について】
A100: ・ 勤務日や勤務時間帯がシフトやローテーション表などで定められ、不規則に変動する働き方の場合は、この欄を記入してください。
A101: ・ ４週間の勤務実績は連続する週を記入してください。就労予定等で勤務実績がない場合は、今後の就労見込みを記入してください。
A102: ・ 就労する時期によって日数や時間に差がある場合は、過去１年間における繁忙期もしくは標準的に勤務した期間の実績を記入してください。
A103: ・ 勤務日は就労時間が１日４時間以上が勤務日の対象となります。有給休暇や祝日のため実際には勤務が無かった場合でも、１日４時間以上の勤務を割り 振っている場合は、勤務日に含めてください。
A104: ・ 就労時間には、就業規則等で定められている休憩時間を含めますが残業時間は除いてください。
A105: 【項目15「就労場所」について】
A106: ・ 就労先住所が自宅住所(同敷地内)の場合は、自宅内としてください。
A107: ・ 就労先住所が自宅住所の場合でも、毎日の仕事はお客様宅など外出先で行う場合は自宅外としてください。仕事が自宅内、自宅外の両方の場合は、 月（４週）あたりの勤務日数が４分の３以上となる勤務地を選択してください。
A108: ・ 自宅内の仕事で、プレス・研磨・裁断機・有機溶剤等有害薬品・高熱バーナーを使用する場合は申し出てください。自宅外就労として扱います。

Sheet プルダウンリスト (hidden)
A1: 市区町村名 | B1: 施設名 | C1: 年 | D1: 年（児童生年） | E1: 年（実績/過去） | F1: 年（生年月日） | G1: 予定・実績混在 | H1: 月 | I1: 日 | J1: 時 | K1: 分 | L1: 休憩時間 | M1: 日数 | N1: 選択
C2: =YEAR(TODAY()) -> 2025 | D2: =YEAR(TODAY()) -> 2025 | E2: =YEAR(TODAY()) -> 2025 | F2: =YEAR(TODAY()) -> 2025 | G2: =G3+1 -> 2027 | H2: 1 | I2: 1 | J2: 0 | K2: 0 | L2: 15 | M2: 0 | N2: □
C3: =C2+1 -> 2026 | D3: =D2-1 -> 2024 | E3: =E2-1 -> 2024 | F3: =F2-1 -> 2024 | G3: =G4+1 -> 2026 | H3: 2 | I3: 2 | J3: 1 | K3: 1 | L3: 30 | M3: 1 | N3: ■
C4: =C3+1 -> 2027 | D4: =D3-1 -> 2023 | E4: =E3-1 -> 2023 | F4: =F3-1 -> 2023 | G4: =YEAR(TODAY()) -> 2025 | H4: 3 | I4: 3 | J4: 2 | K4: 2 | L4: 45 | M4: 2
C5: 2028 | D5: 2022 | E5: 2022 | F5: 2022 | G5: =G4-1 -> 2024 | H5: 4 | I5: 4 | J5: 3 | K5: 3 | L5: 60 | M5: 3
C6: 2029 | D6: 2021 | E6: 2021 | F6: 2021 | G6: =G5-1 -> 2023 | H6: 5 | I6: 5 | J6: 4 | K6: 4 | L6: 75 | M6: 4
C7: 2030 | D7: 2020 | E7: 2020 | F7: 2020 | G7: 2022 | H7: 6 | I7: 6 | J7: 5 | K7: 5 | L7: 90 | M7: 5
C8: 2031 | D8: 2019 | E8: 2019 | F8: 2019 | G8: 2021 | H8: 7 | I8: 7 | J8: 6 | K8: 6 | L8: 105 | M8: 6
C9: 2032 | D9: 2018 | E9: 2018 | F9: 2018 | G9: 2020 | H9: 8 | I9: 8 | J9: 7 | K9: 7 | L9: 120 | M9: 7
C10: 2033 | D10: 2017 | E10: 2017 | F10: 2017 | G10: 2019 | H10: 9 | I10: 9 | J10: 8 | K10: 8 | L10: 135 | M10: 8
C11: 2034 | D11: 2016 | E11: 2016 | F11: 2016 | G11: 2018 | H11: 10 | I11: 10 | J11: 9 | K11: 9 | L11: 150 | M11: 9
C12: 2035 | D12: 2015 | E12: 2015 | F12: 2015 | G12: 2017 | H12: 11 | I12: 11 | J12: 10 | K12: 10 | L12: 165 | M12: 10
C13: 2036 | D13: 2014 | E13: 2014 | F13: 2014 | G13: 2016 | H13: 12 | I13: 12 | J13: 11 | K13: 11 | L13: 180 | M13: 11
C14: 2037 | D14: 2013 | E14: 2013 | F14: 2013 | G14: 2015 | I14: 13 | J14: 12 | K14: 12 | L14: 195 | M14: 12
C15: 2038 | D15: 2012 | E15: 2012 | F15: 2012 | G15: 2014 | I15: 14 | J15: 13 | K15: 13 | L15: 210 | M15: 13
C16: 2039 | D16: 2011 | E16: 2011 | F16: 2011 | G16: 2013 | I16: 15 | J16: 14 | K16: 14 | L16: 225 | M16: 14
C17: 2040 | D17: 2010 | E17: 2010 | F17: 2010 | G17: 2012 | I17: 16 | J17: 15 | K17: 15 | L17: 240 | M17: 15
C18: 2041 | D18: 2009 | E18: 2009 | F18: 2009 | G18: 2011 | I18: 17 | J18: 16 | K18: 16 | L18: 255 | M18: 16
C19: 2042 | D19: 2008 | E19: 2008 | F19: 2008 | G19: 2010 | I19: 18 | J19: 17 | K19: 17 | L19: 270 | M19: 17
C20: 2043 | D20: 2007 | E20: 2007 | F20: 2007 | G20: 2009 | I20: 19 | J20: 18 | K20: 18 | L20: 285 | M20: 18
C21: 2044 | D21: 2006 | E21: 2006 | F21: 2006 | G21: 2008 | I21: 20 | J21: 19 | K21: 19 | L21: 300 | M21: 19
C22: 2045 | D22: 2005 | E22: 2005 | F22: 2005 | G22: 2007 | I22: 21 | J22: 20 | K22: 20 | L22: 315 | M22: 20
C23: 2046 | D23: 2004 | E23: 2004 | F23: 2004 | G23: 2006 | I23: 22 | J23: 21 | K23: 21 | L23: 330 | M23: 21
C24: 2047 | D24: 2003 | E24: 2003 | F24: 2003 | G24: 2005 | I24: 23 | J24: 22 | K24: 22 | L24: 345 | M24: 22
C25: 2048 | D25: 2002 | E25: 2002 | F25: 2002 | G25: 2004 | I25: 24 | J25: 23 | K25: 23 | L25: 360 | M25: 23
C26: 2049 | D26: 2001 | E26: 2001 | F26: 2001 | G26: 2003 | I26: 25 | J26: 24 | K26: 24 | L26: 375 | M26: 24
C27: 2050 | D27: 2000 | E27: 2000 | F27: 2000 | G27: 2002 | I27: 26 | J27: 25 | K27: 25 | L27: 390 | M27: 25
C28: 2051 | D28: 1999 | E28: 1999 | F28: 1999 | G28: 2001 | I28: 27 | J28: 26 | K28: 26 | L28: 405 | M28: 26
C29: 2052 | E29: 1998 | F29: 1998 | G29: 2000 | I29: 28 | J29: 27 | K29: 27 | L29: 420 | M29: 27
C30: 2053 | E30: 1997 | F30: 1997 | G30: 1999 | I30: 29 | J30: 28 | K30: 28 | L30: 435 | M30: 28
C31: 2054 | E31: 1996 | F31: 1996 | G31: 1998 | I31: 30 | J31: 29 | K31: 29 | L31: 450 | M31: 29
E32: 1995 | F32: 1995 | G32: 1997 | I32: 31 | K32: 30 | L32: 465 | M32: 30
E33: 1994 | F33: 1994 | G33: 1996 | K33: 31 | L33: 480 | M33: 31
E34: 1993 | F34: 1993 | G34: 1995 | K34: 32
E35: 1992 | F35: 1992 | G35: 1994 | K35: 33
E36: 1991 | F36: 1991 | G36: 1993 | K36: 34
E37: 1990 | F37: 1990 | G37: 1992 | K37: 35
E38: 1989 | F38: 1989 | G38: 1991 | K38: 36
E39: 1988 | F39: 1988 | G39: 1990 | K39: 37
E40: 1987 | F40: 1987 | G40: 1989 | K40: 38
E41: 1986 | F41: 1986 | G41: 1988 | K41: 39
E42: 1985 | F42: 1985 | G42: 1987 | K42: 40
E43: 1984 | F43: 1984 | G43: 1986 | K43: 41
E44: 1983 | F44: 1983 | G44: 1985 | K44: 42
E45: 1982 | F45: 1982 | G45: 1984 | K45: 43
E46: 1981 | F46: 1981 | G46: 1983 | K46: 44
E47: 1980 | F47: 1980 | G47: 1982 | K47: 45
E48: 1979 | F48: 1979 | G48: 1981 | K48: 46
E49: 1978 | F49: 1978 | G49: 1980 | K49: 47
E50: 1977 | F50: 1977 | G50: 1979 | K50: 48
E51: 1976 | F51: 1976 | G51: 1978 | K51: 49
E52: 1975 | F52: 1975 | G52: 1977 | K52: 50
E53: 1974 | F53: 1974 | G53: 1976 | K53: 51
E54: 1973 | F54: 1973 | G54: 1975 | K54: 52
E55: 1972 | F55: 1972 | G55: 1974 | K55: 53
E56: 1971 | F56: 1971 | G56: 1973 | K56: 54
E57: 1970 | F57: 1970 | G57: 1972 | K57: 55
E58: 1969 | F58: 1969 | G58: 1971 | K58: 56
E59: 1968 | F59: 1968 | G59: 1970 | K59: 57
E60: 1967 | F60: 1967 | G60: 1969 | K60: 58
E61: 1966 | F61: 1966 | G61: 1968 | K61: 59
E62: 1965 | F62: 1965 | G62: 1967
F63: 1964 | G63: 1966
F64: 1963 | G64: 1965
F65: 1962 | G65: 1964
F66: 1961 | G66: 1963
F67: 1960 | G67: 1962
F68: =F67-1 -> 1959 | G68: 1961
F69: 1958 | G69: 1960
F70: 1957 | G70: =G69-1 -> 1959
F71: 1956 | G71: 1958
F72: 1955 | G72: 1957
F73: 1954 | G73: 1956
F74: 1953 | G74: 1955
F75: 1952 | G75: 1954
F76: 1951 | G76: 1953
F77: 1950 | G77: 1952
F78: 1949 | G78: 1951
F79: 1948 | G79: 1950
F80: 1947 | G80: 1949
F81: 1946 | G81: 1948
F82: 1945 | G82: 1947
F83: 1944 | G83: 1946
F84: 1943 | G84: 1945
F85: 1942 | G85: 1944
F86: 1941 | G86: 1943
F87: 1940 | G87: 1942
F88: 1939 | G88: 1941
F89: 1938 | G89: 1940
F90: 1937 | G90: 1939
F91: 1936 | G91: 1938
F92: 1935 | G92: 1937
F93: 1934 | G93: 1936
F94: 1933 | G94: 1935
F95: 1932 | G95: 1934
F96: 1931 | G96: 1933
F97: 1930 | G97: 1932
F98: 1929 | G98: 1931
F99: 1928 | G99: 1930
F100: 1927 | G100: 1929
F101: 1926 | G101: 1928
F102: 1925 | G102: 1927
F103: 1924 | G103: 1926
F104: 1923 | G104: 1925
F105: 1922 | G105: 1924
F106: 1921 | G106: 1923
F107: 1920 | G107: 1922
F108: 1919 | G108: 1921
F109: 1918 | G109: 1920
F110: 1917 | G110: 1919
F111: 1916 | G111: 1918
F112: 1915 | G112: 1917
F113: 1914 | G113: 1916
F114: 1913 | G114: 1915
F115: 1912 | G115: 1914
F116: 1911 | G116: 1913
F117: 1910 | G117: 1912
F118: 1909 | G118: 1911
F119: 1908 | G119: 1910
F120: 1907 | G120: 1909
F121: 1906 | G121: 1908
F122: 1905 | G122: 1907
F123: 1904 | G123: 1906
